bitfinex-derivatives/quotes_BTCF0:USTF0_20210111
["timestamp","ask_amount","ask_price","bid_price","bid_amount"]
[1610405964600,0.13632608,34389.0,34368.0,0.13632608]
[1610405964799,0.13632608,34389.0,34370.0,3.6033]
[1610405966201,0.10151,34401.0,34348.0,2.43512417]
[1610405966602,0.0864,34408.0,34369.0,3.5616]
[1610405966800,0.2971,34412.0,34399.0,0.13632608]
[1610405967312,0.1036,34415.0,34398.0,3.9734]
[1610405967502,1.0,34418.0,34398.0,3.9734]
[1610405967903,0.01727723,34424.0,34398.0,4.04388]
[1610405968303,0.01729765,34428.0,34398.0,4.04388]
[1610405968706,0.13632608,34405.0,34398.0,4.04388]
[1610405970208,0.08543,34421.0,34398.0,4.04388]
[1610405970608,0.08543,34421.0,34416.0,0.13632608]
[1610405970806,0.08543,34421.0,34398.0,4.04388]
[1610405971008,0.08543,34421.0,34398.0,0.07048]
[1610405971207,0.08543,34421.0,34399.0,4.4544]
[1610405972710,0.08543,34421.0,34402.0,0.13632608]
[1610405974112,0.01749633,34428.0,34402.0,0.13632608]
[1610405974413,0.53726528,34428.0,34402.0,0.13632608]
[1610405974611,0.01749633,34428.0,34402.0,0.13632608]
[1610405974811,0.13632608,34408.0,34402.0,0.13632608]
[1610405976717,0.13632608,34408.0,34407.0,0.13632608]
[1610405978120,0.13632608,34408.0,34407.0,0.67922608]
[1610405978320,0.13632608,34408.0,34407.0,0.5429]
[1610405980623,0.01743131,34422.0,34407.0,0.5429]
[1610405980825,0.5349578,34420.0,34407.0,0.5429]
[1610405981022,0.13632608,34408.0,34390.0,0.08066]
[1610405981223,0.13632608,34408.0,34400.0,3.4607]
[1610405981423,0.13632608,34408.0,34385.0,0.13632608]
[1610405981623,4.3359,34406.0,34378.0,3.7633]
[1610405983025,0.13632608,34379.0,34378.0,3.7633]
[1610405983224,0.13632608,34379.0,34361.0,0.07183]
[1610405983527,0.13632608,34379.0,34361.0,3.5339]
[1610405984126,0.13632608,34379.0,34348.0,0.07233]
[1610405984325,4.657,34374.0,34338.0,2.43796648]
[1610405984527,4.76756,34374.0,34338.0,2.43796648]
[1610405984727,4.76756,34374.0,34337.0,3.3502]
[1610405984925,0.13632608,34338.0,34337.0,3.48652608]
[1610405985226,0.13632608,34338.0,34337.0,0.13632608]
[1610405985726,4.6544,34356.0,34337.0,0.13632608]
[1610405985927,4.6544,34356.0,34337.0,0.21904608]
[1610405986728,0.10827,34364.0,34337.0,0.21904608]
[1610405986927,0.13632608,34360.0,34352.0,0.13632608]
[1610405990931,3.7391,34378.0,34350.0,3.6371]
[1610405991131,3.7391,34378.0,34350.0,3.7392]
[1610405991532,0.13632608,34369.0,34366.0,0.13632608]
[1610405992334,0.13632608,34369.0,34350.0,3.7392]
[1610405993534,0.13632608,34360.0,34355.0,0.13632608]
[1610405994434,0.10483,34375.0,34355.0,0.13632608]
[1610405995435,0.13632608,34366.0,34361.0,0.13632608]
[1610405996736,0.13632608,34366.0,34350.0,3.7392]
[1610405997436,0.13632608,34366.0,34352.0,0.13632608]
[1610406001042,0.10483,34375.0,34352.0,0.13632608]
[1610406001345,0.31494903,34396.0,34363.0,3.8697]
[1610406001540,0.2979,34396.0,34383.0,0.13632608]
[1610406001742,0.52423728,34400.0,34388.0,4.6041]
[1610406001942,0.01709841,34406.0,34371.0,0.07083]
[1610406002241,0.52537136,34408.0,34404.0,4.2314]
[1610406002440,0.52537136,34408.0,34391.0,0.08149]
[1610406002641,0.71524468,34410.0,34391.0,0.08149]
[1610406002642,0.10536,34410.0,34409.0,4.6511]
[1610406002955,0.09249,34417.0,34409.0,4.6511]
[1610406003142,0.0171933,34423.0,34409.0,4.6511]
[1610406003440,0.52873896,34432.0,34409.0,4.6511]
[1610406003842,0.52920113,34438.0,34409.0,4.6511]
[1610406004043,0.52920113,34438.0,34407.0,0.11301]
[1610406004246,0.01724997,34443.0,34437.0,0.13632608]
[1610406004643,0.10315906,34449.0,34442.0,4.8363]
[1610406005042,0.08588,34449.0,34442.0,4.8363]
[1610406005442,0.01730441,34457.0,34442.0,4.8363]
[1610406005642,0.01730441,34457.0,34442.0,4.91835]
[1610406005944,0.53158872,34457.0,34442.0,4.91835]
[1610406006245,0.13632608,34457.0,34448.0,0.13632608]
[1610406006445,0.13632608,34457.0,34442.0,4.91835]
[1610406007844,0.53102202,34460.0,34442.0,4.91835]
[1610406008043,0.01728111,34458.0,34442.0,4.91835]
[1610406008542,0.13632608,34455.0,34442.0,4.91835]
[1610406010544,0.13632608,34455.0,34442.0,5.05467608]
[1610406010743,0.13327967,34463.0,34442.0,4.91835]
[1610406011044,0.10742,34463.0,34462.0,4.4299]
[1610406011444,0.00866011,34467.0,34458.0,0.0866]
[1610406011745,0.00865911,34474.0,34458.0,0.0866]
[1610406011945,0.00865911,34474.0,34473.0,3.9138]
[1610406012149,0.02585176,34480.0,34473.0,3.9138]
[1610406012547,0.13632608,34474.0,34466.0,0.10528]
[1610406012747,0.13632608,34474.0,34458.0,0.0866]
[1610406012947,0.24142608,34474.0,34453.0,3.4482]
[1610406013146,4.91432608,34474.0,34453.0,3.4204]
[1610406013347,0.00864906,34473.0,34453.0,3.3695]
[1610406013548,0.00863178,34469.0,34453.0,3.3695]
[1610406014149,0.00862168,34466.0,34453.0,3.3695]
[1610406014349,0.08954,34466.0,34453.0,3.3695]
[1610406014550,0.13632608,34454.0,34393.0,0.2889]
[1610406014851,0.08284,34455.0,34437.0,3.2619]
[1610406016151,0.08284,34455.0,34431.0,0.10193]
[1610406016451,0.13632608,34432.0,34431.0,0.10193]
[1610406016652,0.13632608,34432.0,34409.0,0.13632608]
[1610406017057,0.13632608,34432.0,34416.0,3.7271]
[1610406017253,0.13632608,34432.0,34416.0,3.8402]
[1610406017456,0.09155,34441.0,34416.0,3.8402]
[1610406018155,3.8932,34431.0,34416.0,0.1131]
[1610406018356,0.07933,34431.0,34380.0,0.08694]
[1610406018553,4.2094,34415.0,34380.0,3.77274]
[1610406018754,0.13632608,34417.0,34380.0,0.08694]
[1610406018955,3.6846,34401.0,34380.0,0.08694]
[1610406019353,3.78026,34401.0,34372.0,0.07716]
[1610406020156,0.09566,34401.0,34372.0,0.07716]
[1610406020356,0.09566,34401.0,34373.0,3.7257]
[1610406020958,0.10843,34415.0,34373.0,3.7257]
[1610406022558,0.13632608,34402.0,34373.0,3.7257]
[1610406023156,0.13632608,34402.0,34372.0,0.07716]
[1610406023357,4.2504,34401.0,34372.0,0.07716]
[1610406024160,4.2504,34401.0,34346.0,2.76165633]
[1610406024161,0.13632608,34402.0,34345.0,2.41660909]
[1610406024360,0.1119,34407.0,34378.0,4.5959]
[1610406024561,0.13632608,34412.0,34398.0,0.13632608]
[1610406024762,0.13632608,34412.0,34398.0,0.24647608]
[1610406025964,0.2863,34429.0,34398.0,4.91817608]
[1610406026166,0.07933,34431.0,34398.0,4.91817608]
[1610406026370,0.07933,34431.0,34398.0,4.78185]
[1610406026566,3.8264,34442.0,34398.0,4.78185]
[1610406026769,0.02535516,34444.0,34432.0,0.13632608]
[1610406026969,0.02538814,34448.0,34432.0,0.13632608]
[1610406027368,0.02540279,34450.0,34432.0,0.13632608]
[1610406027671,0.60181218,34453.0,34432.0,0.13632608]
[1610406027672,0.02541988,34453.0,34432.0,0.13632608]
[1610406028070,0.00853181,34454.0,34432.0,0.13632608]
[1610406028269,0.00853181,34454.0,34432.0,0.21172608]
[1610406028470,0.00854796,34462.0,34432.0,0.21172608]
[1610406028670,0.00854796,34462.0,34433.0,3.5702]
[1610406028871,0.02550434,34466.0,34453.0,0.13632608]
[1610406029375,0.00855738,34466.0,34453.0,0.13632608]
[1610406029772,0.00855664,34467.0,34453.0,0.13632608]
[1610406030175,0.00856287,34469.0,34453.0,0.13632608]
[1610406030672,0.02552862,34472.0,34453.0,0.13632608]
[1610406030872,0.13632608,34465.0,34453.0,0.13632608]
[1610406032774,0.07909,34475.0,34462.0,0.13632608]
[1610406034379,0.0385654,34480.0,34462.0,0.13632608]
[1610406034780,0.03,34480.0,34462.0,0.13632608]
[1610406034979,0.16632608,34480.0,34479.0,0.13632608]
[1610406035781,0.03,34480.0,34479.0,0.13632608]
[1610406036282,0.03,34480.0,34467.0,0.07428]
[1610406036884,0.09882,34495.0,34479.0,0.13632608]
[1610406037184,0.13632608,34498.0,34491.0,4.433]
[1610406037383,0.13632608,34498.0,34479.0,0.21546608]
[1610406037585,0.13632608,34498.0,34490.0,3.4829]
[1610406038987,0.13632608,34491.0,34490.0,3.4829]
[1610406039288,3.8583,34494.0,34479.0,0.07914]
[1610406039786,3.96875,34494.0,34467.0,3.9959]
[1610406040188,3.97728794,34494.0,34467.0,3.9959]
[1610406040888,0.13632608,34473.0,34467.0,3.9959]
[1610406041089,3.96875,34494.0,34467.0,3.9959]
[1610406041291,0.08143,34478.0,34467.0,3.9959]
[1610406041989,0.08143,34478.0,34455.0,0.10408]
[1610406043094,0.13632608,34456.0,34455.0,0.10408]
[1610406043792,0.79952608,34456.0,34455.0,0.08638]
[1610406043993,0.10475,34456.0,34388.0,0.2727]
[1610406044193,4.8069,34452.0,34393.0,4.0903]
[1610406045194,0.13632608,34416.0,34406.0,0.13632608]
[1610406045596,0.0799,34441.0,34393.0,4.0903]
[1610406045795,0.0799,34441.0,34393.0,4.19062]
[1610406047194,0.0799,34441.0,34420.0,0.13632608]
[1610406047595,0.10475,34456.0,34420.0,0.13632608]
[1610406048498,0.00848763,34473.0,34436.0,3.7531]
[1610406048697,0.00848763,34473.0,34420.0,1.63632608]
[1610406048898,0.02536919,34484.0,34457.0,4.0455]
[1610406049298,0.02536919,34484.0,34464.0,3.3643]
[1610406049498,1.0,34485.0,34457.0,0.10286]
[1610406049700,1.0,34485.0,34479.0,4.1905]
[1610406049899,0.00855141,34501.0,34484.0,0.13632608]
[1610406050098,0.00855141,34501.0,34484.0,0.21493608]
[1610406050398,0.00856874,34510.0,34484.0,0.21493608]
[1610406050599,0.00858458,34516.0,34484.0,0.21493608]
[1610406050901,0.02558782,34517.0,34496.0,3.3543]
[1610406051301,0.00858852,34518.0,34496.0,3.3543]
[1610406051702,0.02560512,34520.0,34496.0,3.3543]
[1610406051904,0.13632608,34509.0,34494.0,0.07148]
[1610406052504,0.02560101,34519.0,34494.0,0.07148]
[1610406052705,0.00858014,34515.0,34485.0,3.4981]
[1610406052905,0.00856721,34510.0,34485.0,3.4981]
[1610406053106,0.02553365,34510.0,34485.0,3.4981]
[1610406053408,0.00855834,34504.0,34485.0,3.4981]
[1610406053706,0.00855428,34503.0,34485.0,3.4981]
[1610406054106,0.00855164,34502.0,34485.0,3.4981]
[1610406054506,0.13632608,34488.0,34485.0,3.4981]
[1610406056508,0.13632608,34492.0,34487.0,0.13632608]
[1610406056908,0.13632608,34492.0,34485.0,3.4981]
[1610406058110,0.08143,34505.0,34485.0,3.4981]
[1610406058612,0.13632608,34486.0,34485.0,3.4981]
[1610406059711,0.13632608,34486.0,34480.0,0.08831]
[1610406060314,0.13632608,34486.0,34464.0,0.1121]
[1610406060815,4.53405,34471.0,34438.0,3.8845]
[1610406061014,0.11125,34471.0,34408.0,2.40456229]
[1610406061217,3.4478,34463.0,34412.0,4.0309]
[1610406061415,3.55748,34463.0,34412.0,4.0309]
[1610406061917,0.13632608,34431.0,34422.0,0.13632608]
[1610406062214,0.13632608,34431.0,34388.0,2.68910927]
[1610406062215,0.08545,34440.0,34388.0,6.13270927]
[1610406062415,0.08545,34440.0,34388.0,3.79436]
[1610406062715,0.08545,34440.0,34388.0,3.51756]
[1610406063918,0.13632608,34418.0,34410.0,0.13632608]
[1610406064115,0.08545,34440.0,34388.0,3.51756]
[1610406065619,0.08545,34440.0,34388.0,0.07396]
[1610406065819,0.08545,34440.0,34430.0,0.13632608]
[1610406066423,0.07601,34448.0,34425.0,0.09962]
[1610406067023,0.10968,34463.0,34425.0,0.09962]
[1610406067222,0.07569,34451.0,34425.0,0.09962]
[1610406067424,0.2771,34470.0,34435.0,3.4717]
[1610406067724,0.02561818,34480.0,34435.0,3.58294]
[1610406067923,0.02561818,34480.0,34478.0,0.13632608]
[1610406068124,0.00860526,34484.0,34478.0,0.13632608]
[1610406068626,0.02567382,34488.0,34478.0,0.13632608]
[1610406068928,0.00862098,34490.0,34478.0,0.13632608]
[1610406069225,0.00863132,34493.0,34478.0,0.13632608]
[1610406069627,0.02572391,34494.0,34478.0,0.13632608]
[1610406069926,0.00864413,34498.0,34465.0,0.08416]
[1610406070526,0.00355936,34498.0,34465.0,0.08416]
[1610406070828,0.00864416,34499.0,34465.0,0.08416]
[1610406070829,0.01220689,34499.0,34465.0,0.08416]
[1610406071232,0.00356273,34499.0,34465.0,0.08416]
[1610406071633,0.00356577,34500.0,34465.0,0.08416]
[1610406071930,0.00356577,34500.0,34485.0,0.13632608]
[1610406072130,0.00356787,34501.0,34485.0,0.13632608]
[1610406072630,0.00357085,34502.0,34485.0,0.13632608]
[1610406072832,0.00867207,34503.0,34485.0,0.13632608]
[1610406072833,0.01224913,34503.0,34485.0,0.13632608]
[1610406073132,0.00357706,34503.0,34485.0,0.13632608]
[1610406073432,0.61338122,34507.0,34485.0,0.13632608]
[1610406073433,0.00358545,34506.0,34485.0,0.13632608]
[1610406073832,0.01229928,34505.0,34485.0,0.13632608]
[1610406074033,0.13632608,34499.0,34493.0,0.13632608]
[1610406074533,0.08334,34500.0,34479.0,4.78522]
[1610406074534,0.08334,34500.0,34486.0,0.07369]
[1610406074834,0.08334,34500.0,34487.0,0.5877]
[1610406075233,0.1147553,34508.0,34487.0,0.5877]
[1610406075435,0.11115,34508.0,34487.0,0.5877]
[1610406075936,0.24747608,34508.0,34507.0,0.13632608]
[1610406076638,0.11115,34508.0,34507.0,0.13456481]
[1610406077239,0.00361047,34515.0,34507.0,0.13456481]
[1610406077739,0.01237474,34517.0,34507.0,0.13456481]
[1610406077938,0.00876544,34517.0,34516.0,0.13632608]
[1610406078339,0.0036091,34517.0,34516.0,0.13632608]
[1610406078740,0.01237395,34518.0,34516.0,0.13632608]
[1610406079140,0.00360872,34519.0,34516.0,0.13632608]
[1610406079542,0.01237813,34521.0,34516.0,0.13632608]
[1610406080040,0.00361029,34521.0,34520.0,0.13632608]
[1610406080441,0.0123779,34521.0,34520.0,0.13632608]
[1610406080641,0.0123779,34521.0,34512.0,4.2771]
[1610406080844,0.00361029,34521.0,34512.0,4.2771]
[1610406081246,0.07262,34526.0,34512.0,4.2771]
[1610406082343,0.00361148,34530.0,34512.0,4.2771]
[1610406082555,0.13993736,34533.0,34512.0,4.2771]
[1610406082744,0.00361136,34531.0,34512.0,4.2771]
[1610406083145,0.00361098,34533.0,34512.0,4.2771]
[1610406083345,0.00361098,34533.0,34511.0,0.10986]
[1610406083548,0.00361179,34531.0,34521.0,4.1649]
[1610406083847,0.01737099,34532.0,34521.0,4.1649]
[1610406084047,0.00361131,34537.0,34530.0,0.13632608]
[1610406084247,0.01238197,34539.0,34530.0,0.13632608]
[1610406084446,0.01238197,34539.0,34530.0,0.64472608]
[1610406084650,0.01238197,34539.0,34530.0,0.62472608]
[1610406085048,0.65241308,34541.0,34530.0,0.62472608]
[1610406085049,0.13632608,34541.0,34530.0,0.62472608]
[1610406085948,0.13632608,34541.0,34536.0,0.13632608]
[1610406086149,0.13632608,34541.0,34522.0,0.07053]
[1610406086449,0.13632608,34541.0,34511.0,0.10986]
[1610406086450,0.00361383,34535.0,34511.0,0.10986]
[1610406086851,0.01239169,34530.0,34496.0,3.9018]
[1610406087354,0.00361513,34526.0,34496.0,3.9018]
[1610406087551,0.10153513,34526.0,34496.0,3.9018]
[1610406087752,0.61763513,34526.0,34496.0,3.9018]
[1610406088051,0.13632608,34502.0,34484.0,0.13632608]
[1610406088252,0.24863608,34502.0,34485.0,4.7147]
[1610406089755,0.24863608,34502.0,34478.0,0.08249]
[1610406089956,0.13632608,34479.0,34478.0,0.08249]
[1610406090553,0.13632608,34479.0,34463.0,0.13632608]
[1610406092154,0.13632608,34467.0,34463.0,0.13632608]
[1610406092755,0.08583,34478.0,34463.0,0.13632608]
[1610406092955,0.10738,34471.0,34463.0,0.13632608]
[1610406093956,0.08374,34502.0,34463.0,0.13632608]
[1610406094256,0.08374,34502.0,34463.0,0.09686]
[1610406094457,0.08374,34502.0,34463.0,4.79606]
[1610406094658,0.13632608,34491.0,34477.0,0.13632608]
[1610406095464,0.08374,34502.0,34463.0,4.79606]
[1610406095662,0.10039,34493.0,34463.0,0.09686]
[1610406096564,0.13632608,34473.0,34463.0,0.09686]
[1610406098669,0.08285,34482.0,34464.0,0.13632608]
[1610406098670,0.13632608,34466.0,34464.0,0.13632608]
[1610406098870,0.08285,34482.0,34449.0,0.07481]
[1610406099071,0.08285,34482.0,34452.0,3.3487]
[1610406099471,0.08285,34482.0,34452.0,0.07593]
[1610406100772,0.08285,34482.0,34480.0,0.13632608]
[1610406100971,0.08285,34482.0,34466.0,0.11382]
[1610406101372,0.10039,34493.0,34466.0,0.11382]
[1610406101872,0.293,34497.0,34466.0,0.11382]
[1610406102577,0.13632608,34481.0,34476.0,0.13632608]
[1610406103076,0.09679,34489.0,34466.0,0.11382]
[1610406104576,0.13632608,34478.0,34466.0,0.11382]
[1610406105776,0.08374,34502.0,34466.0,0.11382]
[1610406105975,0.08374,34502.0,34473.0,4.7844]
[1610406106177,0.61732027,34507.0,34496.0,3.9404]
[1610406106178,0.00360227,34506.0,34496.0,3.9404]
[1610406106478,2.27e-06,34506.0,34496.0,0.08133]
[1610406106680,0.13585756,34508.0,34506.0,3.5796]
[1610406106879,0.61936966,34517.0,34506.0,3.67985]
[1610406107278,1.20416745,34534.0,34506.0,3.67985]
[1610406107279,0.62176651,34536.0,34506.0,3.67985]
[1610406107779,0.13632608,34542.0,34506.0,0.10025]
[1610406108180,0.62200314,34540.0,34506.0,0.10025]
[1610406108380,0.62200314,34540.0,34505.0,0.13632608]
[1610406108581,0.72100161,34531.0,34505.0,0.13632608]
[1610406108781,0.09931,34531.0,34505.0,0.13632608]
[1610406110182,0.09931,34531.0,34500.0,3.9017]
[1610406110685,0.09931,34531.0,34513.0,0.13632608]
[1610406110883,0.09931,34531.0,34518.0,3.4597]
[1610406111085,0.62182687,34539.0,34518.0,3.4597]
[1610406111385,0.69132363,34540.0,34518.0,3.4597]
[1610406111985,0.06979,34540.0,34518.0,3.4597]
[1610406112585,0.62107454,34550.0,34518.0,3.4597]
[1610406112785,0.13632608,34548.0,34539.0,0.13632608]
[1610406112988,0.25032608,34548.0,34539.0,0.13632608]
[1610406114692,0.25032608,34548.0,34547.0,0.13632608]
[1610406115991,0.72719814,34555.0,34547.0,0.13632608]
[1610406116192,0.10726,34555.0,34547.0,0.13632608]
[1610406116692,0.13632608,34552.0,34547.0,0.13632608]
[1610406116892,0.10726,34555.0,34535.0,3.46492]
[1610406117792,0.61910682,34559.0,34535.0,3.46492]
[1610406118095,0.39,34562.0,34535.0,3.46492]
[1610406118693,0.13632608,34559.0,34551.0,0.13632608]
[1610406119895,0.13632608,34559.0,34535.0,0.10492]
[1610406119896,0.0979,34562.0,34547.0,4.8571]
[1610406120296,0.0979,34562.0,34535.0,0.10492]
[1610406120498,0.0979,34562.0,34549.0,4.7325]
[1610406120799,0.0979,34562.0,34556.0,0.13632608]
[1610406121497,0.61790466,34566.0,34556.0,0.13632608]
[1610406121698,0.61772855,34569.0,34556.0,0.13632608]
[1610406122097,0.75496344,34572.0,34556.0,0.13632608]
[1610406122098,0.61769029,34570.0,34556.0,0.13632608]
[1610406122397,0.61769029,34570.0,34549.0,4.7325]
[1610406122598,0.61775057,34571.0,34549.0,4.7325]
[1610406122998,0.61768312,34573.0,34570.0,0.13632608]
[1610406124501,0.61768312,34573.0,34551.0,0.11104]
[1610406124700,0.72075185,34575.0,34566.0,3.61164175]
[1610406125001,0.10257,34575.0,34570.0,0.13632608]
[1610406126504,0.72158901,34575.0,34570.0,0.13632608]
[1610406127104,0.10257,34575.0,34574.0,3.97722608]
[1610406127503,0.75642122,34581.0,34574.0,3.97722608]
[1610406127504,0.6188213,34583.0,34574.0,3.97722608]
[1610406127905,0.6187529,34588.0,34574.0,3.97722608]
[1610406128405,0.75621536,34590.0,34574.0,3.97722608]
[1610406128406,0.6187466,34590.0,34574.0,3.97722608]
[1610406128807,0.61829281,34597.0,34574.0,4.08660608]
[1610406129004,0.61829281,34597.0,34596.0,0.13632608]
[1610406129204,0.61823159,34598.0,34596.0,0.13632608]
[1610406129404,0.61823159,34598.0,34596.0,3.95442608]
[1610406129604,0.61761201,34604.0,34596.0,3.95442608]
[1610406130006,0.61757566,34606.0,34583.0,0.10425]
[1610406130405,0.42170159,34613.0,34583.0,0.10425]
[1610406130406,0.61681767,34608.0,34583.0,0.10425]
[1610406130605,0.61681767,34608.0,34575.0,4.4462]
[1610406130906,0.61689869,34602.0,34575.0,4.4462]
[1610406131108,0.61688192,34603.0,34593.0,0.13632608]
[1610406131605,0.75392873,34606.0,34591.0,3.9618]
[1610406131606,0.61630081,34606.0,34591.0,3.9618]
[1610406131805,0.61632038,34607.0,34591.0,3.9618]
[1610406132206,0.71352917,34608.0,34591.0,3.9618]
[1610406132707,0.09728,34608.0,34591.0,3.9618]
[1610406133007,0.13632608,34601.0,34598.0,0.13632608]
[1610406133208,0.13632608,34601.0,34591.0,3.9618]
[1610406135010,0.13632608,34601.0,34596.0,0.13632608]
[1610406135309,0.61475188,34607.0,34596.0,0.13632608]
[1610406135511,0.09728,34608.0,34596.0,0.13632608]
[1610406136008,0.61419699,34612.0,34596.0,0.13632608]
[1610406136411,0.61419699,34612.0,34591.0,3.9618]
[1610406136609,0.2843,34614.0,34591.0,3.9618]
[1610406136809,0.09225,34612.0,34591.0,3.9618]
[1610406137011,0.09225,34612.0,34609.0,0.13632608]
[1610406137712,0.09225,34612.0,34609.0,0.13456947]
[1610406139514,0.13632608,34616.0,34606.0,3.4324]
[1610406140416,0.08052,34623.0,34606.0,3.4324]
[1610406141015,0.08052,34623.0,34618.0,0.13632608]
[1610406141517,0.08052,34623.0,34618.0,0.0485122]
[1610406142316,0.08052,34623.0,34606.0,3.4324]
[1610406143016,0.13632608,34611.0,34606.0,3.4324]
[1610406143618,0.08052,34623.0,34606.0,3.4324]
[1610406144021,0.08052,34623.0,34591.0,0.11185]
[1610406144219,1.0,34621.0,34523.0,1.5]
[1610406144422,4.6009,34608.0,34566.0,4.1833]
[1610406144820,0.09917,34608.0,34522.0,0.2765]
[1610406145021,0.2774,34586.0,34523.0,3.8532]
[1610406145220,0.13632608,34553.0,34545.0,0.13632608]
[1610406145521,0.13632608,34553.0,34523.0,3.8532]
[1610406145820,0.13632608,34553.0,34501.0,3.2617]
[1610406146321,0.13632608,34553.0,34501.0,3.34728]
[1610406147321,0.13632608,34530.0,34501.0,3.34728]
[1610406147522,0.13632608,34530.0,34501.0,0.08558]
[1610406148123,4.5862,34536.0,34501.0,0.08558]
[1610406148524,0.06876,34539.0,34501.0,0.08558]
[1610406148725,4.4901,34524.0,34501.0,0.08558]
[1610406148926,0.06876,34539.0,34501.0,0.08558]
[1610406149129,3.3822,34516.0,34501.0,0.08558]
[1610406149326,0.13632608,34491.0,34460.0,1.0]
[1610406149729,4.5087,34486.0,34460.0,1.0]
[1610406151329,0.13632608,34474.0,34460.0,1.0]
[1610406152330,0.07568,34489.0,34460.0,1.0]
[1610406152534,0.07568,34489.0,34460.0,1.08394]
[1610406152731,3.5958,34535.0,34476.0,1.5]
[1610406152931,0.50972147,34536.0,34476.0,1.5]
[1610406153133,0.50960884,34544.0,34493.0,3.8192]
[1610406153432,0.50960884,34544.0,34533.0,0.13632608]
[1610406153633,0.50975199,34560.0,34533.0,0.13632608]
[1610406153835,0.50975199,34560.0,34536.0,4.3614]
[1610406154235,0.50960402,34570.0,34536.0,4.3614]
[1610406154636,0.50971011,34580.0,34536.0,4.3614]
[1610406154834,0.50971011,34580.0,34530.0,0.07224]
[1610406155035,0.50961211,34579.0,34530.0,0.07224]
[1610406155235,0.50968856,34593.0,34549.0,3.4469]
[1610406155434,0.50968856,34593.0,34549.0,0.09664]
[1610406155635,0.61146384,34602.0,34592.0,0.13632608]
[1610406156035,0.13632608,34603.0,34592.0,0.13632608]
[1610406156438,0.13632608,34603.0,34579.0,0.10846]
[1610406156645,0.13632608,34603.0,34549.0,0.09664]
[1610406156646,0.21670608,34603.0,34572.0,0.10536]
[1610406156844,3.4096,34598.0,34572.0,0.10536]
[1610406157039,3.4096,34598.0,34552.0,4.6738]
[1610406157540,4.8323,34581.0,34531.0,3.8728]
[1610406157940,4.91561,34581.0,34531.0,3.8728]
[1610406158141,0.13632608,34532.0,34478.0,2.24534149]
[1610406158340,0.13632608,34532.0,34475.0,2.40572303]
[1610406158341,0.13632608,34532.0,34507.0,3.7111]
[1610406158542,0.13632608,34532.0,34530.0,0.02104]
[1610406158757,0.13632608,34532.0,34462.0,2.26232837]
[1610406158949,0.13632608,34532.0,34491.0,4.4318]
[1610406159155,0.23399608,34532.0,34460.0,1.0]
[1610406159445,0.09767,34532.0,34483.0,4.3124]
[1610406159643,0.09767,34532.0,34460.0,1.0]
[1610406159844,3.6359,34514.0,34468.0,4.1209]
[1610406160044,0.13632608,34495.0,34473.0,0.13632608]
[1610406160447,4.65692608,34495.0,34473.0,0.13632608]
[1610406160748,0.06939,34519.0,34460.0,1.0]
[1610406161145,0.06939,34519.0,34496.0,3.9733]
[1610406161445,0.70246336,34540.0,34494.0,0.12705]
[1610406161645,0.61459336,34540.0,34516.0,4.5615]
[1610406161846,0.50809336,34540.0,34516.0,4.66673]
[1610406162048,0.75134306,34564.0,34559.0,0.13632608]
[1610406162445,1.09253432,34573.0,34559.0,0.13632608]
[1610406162446,0.13632608,34573.0,34559.0,0.13632608]
[1610406162646,0.75157825,34584.0,34557.0,4.684]
[1610406163048,0.7514654,34589.0,34557.0,0.099]
[1610406163347,0.7514654,34589.0,34575.0,3.3847]
[1610406163549,0.75204084,34604.0,34575.0,0.10283]
[1610406163747,0.75196182,34606.0,34575.0,0.10283]
[1610406164247,0.21476608,34576.0,34575.0,0.10283]
[1610406164549,0.21476608,34576.0,34557.0,0.099]
[1610406165048,0.07844,34576.0,34554.0,4.1927]
[1610406165247,0.07844,34576.0,34495.0,2.25680078]
[1610406165448,0.07844,34576.0,34519.0,4.7462]
[1610406165849,0.42203342,34575.0,34519.0,4.7462]
[1610406166249,1.17601134,34575.0,34519.0,4.7462]
[1610406166549,1.17601134,34575.0,34495.0,0.0052]
[1610406166550,1.17601134,34575.0,34573.0,0.13632608]
[1610406166750,0.75446863,34589.0,34573.0,0.13632608]
[1610406166950,0.75446863,34589.0,34573.0,0.09709]
[1610406167152,0.75423491,34596.0,34573.0,0.09709]
[1610406167551,0.75439445,34601.0,34573.0,0.09709]
[1610406168050,0.96009164,34609.0,34573.0,0.09709]
[1610406168051,0.75440688,34599.0,34573.0,0.09709]
[1610406168250,0.85832688,34599.0,34573.0,0.09709]
[1610406168453,0.10392,34599.0,34573.0,0.09709]
[1610406168657,0.13632608,34583.0,34573.0,0.09709]
[1610406169155,0.13632608,34583.0,34573.0,0.05979]
[1610406169356,4.6151,34577.0,34535.0,4.0179]
[1610406169556,0.09345,34583.0,34500.0,2.25040378]
[1610406169758,0.75540931,34577.0,34485.0,2.26043131]
[1610406169956,3.3693,34567.0,34516.0,0.09402]
[1610406170355,3.48247,34567.0,34516.0,0.09402]
[1610406170656,0.13632608,34521.0,34516.0,0.09402]
[1610406170855,0.08641,34531.0,34516.0,0.09402]
[1610406171255,0.08641,34531.0,34517.0,4.5123]
[1610406171858,0.11317,34567.0,34517.0,4.5123]
[1610406172260,0.75604268,34578.0,34517.0,4.5123]
[1610406172459,0.09345,34583.0,34517.0,4.5123]
[1610406172658,0.13632608,34554.0,34527.0,0.13632608]
[1610406172857,4.2969,34555.0,34516.0,0.09402]
[1610406173058,0.09664,34554.0,34516.0,0.09402]
[1610406174158,0.09664,34554.0,34516.0,4.20732]
[1610406174358,0.75678107,34561.0,34516.0,4.20732]
[1610406174560,0.11059,34564.0,34544.0,0.13632608]
[1610406174763,0.11059,34564.0,34544.0,0.22067608]
[1610406175761,0.75659311,34582.0,34544.0,0.08435]
[1610406175961,0.63355,34583.0,34544.0,0.08435]
[1610406175962,0.75657537,34579.0,34544.0,0.08435]
[1610406176161,0.75657537,34579.0,34535.0,4.6376]
[1610406176563,0.75685658,34577.0,34535.0,4.6376]
[1610406176963,0.75700604,34567.0,34535.0,4.6376]
[1610406177162,0.13632608,34549.0,34542.0,0.13632608]
[1610406177365,0.09091,34567.0,34542.0,0.13632608]
[1610406177863,0.09091,34567.0,34539.0,0.07865]
[1610406179867,0.13632608,34557.0,34547.0,0.13632608]
[1610406181567,0.10129,34575.0,34547.0,0.13632608]
[1610406181867,0.10129,34575.0,34539.0,0.07865]